[Event "*** Titled Tuesday Blitz"]
[Site "Chess.com"]
[Date "2020.04.21"]
[Round "1"]
[White "pedroholly22"]
[Black "artooon"]
[Result "0-1"]
[WhiteElo "2322"]
[BlackElo "2653"]
[TimeControl "180+1"]
[EndTime "10:08:25 PDT"]
[Termination "artooon won on time"]

1. e4 {[%clk 0:02:57.5]} 1... e5 {[%clk 0:03:00]} 2. Nf3 {[%clk 0:02:57.2]} 2...
Nc6 {[%clk 0:03:00.5]} 3. Bb5 {[%clk 0:02:56.7]} 3... Nf6 {[%clk 0:03:00.6]} 4.
O-O {[%clk 0:02:56]} 4... Nxe4 {[%clk 0:03:00.3]} 5. d4 {[%clk 0:02:54.5]} 5...
Nd6 {[%clk 0:03:00.8]} 6. Ba4 {[%clk 0:02:54.2]} 6... exd4 {[%clk 0:02:59.7]} 7.
c3 {[%clk 0:02:53.3]} 7... Nc4 {[%clk 0:02:55.7]} 8. Re1+ {[%clk 0:02:45.7]}
8... Be7 {[%clk 0:02:55.7]} 9. cxd4 {[%clk 0:02:45]} 9... d5 {[%clk 0:02:55.4]}
10. Bg5 {[%clk 0:02:37.9]} 10... f6 {[%clk 0:02:54]} 11. Bf4 {[%clk 0:02:35.6]}
11... O-O {[%clk 0:02:54.2]} 12. b3 {[%clk 0:02:26]} 12... Nb6 {[%clk
0:02:52.7]} 13. Bxc6 {[%clk 0:02:25.9]} 13... bxc6 {[%clk 0:02:53.6]} 14. Qc2
{[%clk 0:02:24.6]} 14... Bd7 {[%clk 0:02:52.1]} 15. Nc3 {[%clk 0:02:23.9]} 15...
Bd6 {[%clk 0:02:52.1]} 16. Be3 {[%clk 0:02:11.8]} 16... Re8 {[%clk 0:02:51]} 17.
Rac1 {[%clk 0:02:09.6]} 17... Qe7 {[%clk 0:02:46.8]} 18. h3 {[%clk 0:01:48.9]}
18... Qf7 {[%clk 0:02:46.8]} 19. Qd2 {[%clk 0:01:38]} 19... Qh5 {[%clk
0:02:45.8]} 20. Nh2 {[%clk 0:01:30.7]} 20... Qg6 {[%clk 0:02:42.9]} 21. Kh1
{[%clk 0:01:28.1]} 21... Re7 {[%clk 0:02:43.1]} 22. Bf4 {[%clk 0:01:27.7]} 22...
Rae8 {[%clk 0:02:43.3]} 23. Bxd6 {[%clk 0:01:17.4]} 23... cxd6 {[%clk
0:02:44.2]} 24. Rxe7 {[%clk 0:01:16.5]} 24... Rxe7 {[%clk 0:02:45.1]} 25. Qf4
{[%clk 0:01:16.6]} 25... Re6 {[%clk 0:02:37.8]} 26. a4 {[%clk 0:01:12.6]} 26...
Qg5 {[%clk 0:02:14.2]} 27. Qxg5 {[%clk 0:01:06.6]} 27... fxg5 {[%clk 0:02:15.1]}
28. Nf3 {[%clk 0:01:06.1]} 28... h6 {[%clk 0:02:15.2]} 29. a5 {[%clk 0:01:05.3]}
29... Nc8 {[%clk 0:02:15.2]} 30. b4 {[%clk 0:01:05.2]} 30... Ne7 {[%clk
0:02:06.5]} 31. Kg1 {[%clk 0:00:55]} 31... Kf7 {[%clk 0:01:59.2]} 32. Kf1 {[%clk
0:00:54.5]} 32... Bc8 {[%clk 0:01:54.5]} 33. b5 {[%clk 0:00:47.9]} 33... cxb5
{[%clk 0:01:49.8]} 34. Nxd5 {[%clk 0:00:47.4]} 34... Nxd5 {[%clk 0:01:38.9]} 35.
Rxc8 {[%clk 0:00:46.4]} 35... Re7 {[%clk 0:01:34.1]} 36. Rb8 {[%clk 0:00:42.1]}
36... b4 {[%clk 0:01:30.9]} 37. Ne1 {[%clk 0:00:40]} 37... Rc7 {[%clk
0:01:18.3]} 38. Nd3 {[%clk 0:00:38.1]} 38... Rc4 {[%clk 0:01:08.7]} 39. Rb7+
{[%clk 0:00:34.6]} 39... Ke6 {[%clk 0:01:09]} 40. Rxa7 {[%clk 0:00:34.5]} 40...
Rxd4 {[%clk 0:01:09.5]} 41. Ne1 {[%clk 0:00:32.5]} 41... b3 {[%clk 0:01:07.9]}
42. Rb7 {[%clk 0:00:31.2]} 42... Rb4 {[%clk 0:01:06.9]} 43. a6 {[%clk
0:00:24.2]} 43... b2 {[%clk 0:01:01.6]} 44. Rxb4 {[%clk 0:00:16.9]} 44... Nxb4
{[%clk 0:01:02.5]} 45. a7 {[%clk 0:00:16.9]} 45... b1=Q {[%clk 0:01:01.2]} 46.
a8=Q {[%clk 0:00:16.8]} 46... d5 {[%clk 0:00:50.7]} 47. Qe8+ {[%clk 0:00:16.6]}
47... Kf6 {[%clk 0:00:51]} 48. Qf8+ {[%clk 0:00:16.7]} 48... Kg6 {[%clk
0:00:51.4]} 49. Qf3 {[%clk 0:00:16.3]} 49... Kh7 {[%clk 0:00:48.3]} 50. g4
{[%clk 0:00:16]} 50... Kh8 {[%clk 0:00:44.6]} 51. Qf8+ {[%clk 0:00:15.2]} 51...
Kh7 {[%clk 0:00:45.1]} 52. Qf3 {[%clk 0:00:15.4]} 52... d4 {[%clk 0:00:40.7]}
53. Qf8 {[%clk 0:00:12.7]} 53... Nd5 {[%clk 0:00:35.5]} 54. Qf3 {[%clk
0:00:05.6]} 54... Nf4 {[%clk 0:00:34.8]} 55. h4 {[%clk 0:00:05.4]} 55... Qb5+
{[%clk 0:00:32]} 56. Kg1 {[%clk 0:00:04.6]} 56... Qb1 {[%clk 0:00:31.3]} 57. Kf1
{[%clk 0:00:03.7]} 57... Qg6 {[%clk 0:00:28.6]} 58. h5 {[%clk 0:00:03.2]} 58...
Qb1 {[%clk 0:00:27.8]} 59. Qc6 {[%clk 0:00:01.9]} 59... Kh8 {[%clk 0:00:19.9]}
60. Qc8+ {[%clk 0:00:01.3]} 60... Kh7 {[%clk 0:00:20.3]} 61. Qc6 {[%clk
0:00:01.4]} 61... Nh3 {[%clk 0:00:18.9]} 0-1

[Event "*** Titled Tuesday Blitz"]
[Site "Chess.com"]
[Date "2020.04.21"]
[Round "1"]
[White "GeorgMeier"]
[Black "Embrujada"]
[Result "1-0"]
[WhiteElo "3049"]
[BlackElo "2474"]
[TimeControl "180+1"]
[EndTime "10:08:26 PDT"]
[Termination "GeorgMeier won on time"]

1. Nf3 {[%clk 0:02:55.3]} 1... d5 {[%clk 0:02:59.1]} 2. g3 {[%clk 0:02:54.6]}
2... Nf6 {[%clk 0:02:58.9]} 3. Bg2 {[%clk 0:02:55.1]} 3... g6 {[%clk 0:02:58.1]}
4. O-O {[%clk 0:02:55.4]} 4... Bg7 {[%clk 0:02:58.7]} 5. d4 {[%clk 0:02:56]}
5... O-O {[%clk 0:02:59.3]} 6. c4 {[%clk 0:02:56.6]} 6... c6 {[%clk 0:02:59.6]}
7. cxd5 {[%clk 0:02:56.2]} 7... cxd5 {[%clk 0:02:59.5]} 8. Nc3 {[%clk
0:02:56.8]} 8... Nc6 {[%clk 0:02:59.6]} 9. Ne5 {[%clk 0:02:57.4]} 9... Ng4
{[%clk 0:02:56.8]} 10. Nxc6 {[%clk 0:02:50.4]} 10... bxc6 {[%clk 0:02:56.3]} 11.
h3 {[%clk 0:02:50.4]} 11... Nf6 {[%clk 0:02:55.3]} 12. Bf4 {[%clk 0:02:48.7]}
12... a5 {[%clk 0:02:38.4]} 13. Rc1 {[%clk 0:02:47.3]} 13... Ba6 {[%clk
0:02:38.3]} 14. Qd2 {[%clk 0:02:43.5]} 14... Re8 {[%clk 0:02:37.5]} 15. Rfd1
{[%clk 0:02:43.2]} 15... Nd7 {[%clk 0:02:36.4]} 16. e4 {[%clk 0:02:38.3]} 16...
Nb6 {[%clk 0:02:11.3]} 17. b3 {[%clk 0:02:25.5]} 17... a4 {[%clk 0:02:09]} 18.
h4 {[%clk 0:01:55.8]} 18... h5 {[%clk 0:01:29.8]} 19. Be5 {[%clk 0:01:48.7]}
19... f6 {[%clk 0:01:22.1]} 20. Bf4 {[%clk 0:01:47.8]} 20... e5 {[%clk
0:01:22.3]} 21. dxe5 {[%clk 0:01:39.3]} 21... d4 {[%clk 0:01:21.5]} 22. exf6
{[%clk 0:01:29.5]} 22... Qxf6 {[%clk 0:01:15.1]} 23. Nxa4 {[%clk 0:01:27.4]}
23... Nxa4 {[%clk 0:01:12.6]} 24. bxa4 {[%clk 0:01:28.3]} 24... Rad8 {[%clk
0:00:52.3]} 25. e5 {[%clk 0:01:27.6]} 25... Qf5 {[%clk 0:00:44.7]} 26. Rxc6
{[%clk 0:01:02.1]} 26... Bb7 {[%clk 0:00:44.2]} 27. Rc7 {[%clk 0:00:51]} 27...
Bxg2 {[%clk 0:00:44]} 28. Kxg2 {[%clk 0:00:50.9]} 28... Bxe5 {[%clk 0:00:44.3]}
29. Bxe5 {[%clk 0:00:50.2]} 29... Qxe5 {[%clk 0:00:43.8]} 30. Qc2 {[%clk
0:00:50.2]} 30... d3 {[%clk 0:00:36.3]} 31. Qc4+ {[%clk 0:00:50]} 31... Re6
{[%clk 0:00:33.7]} 32. Rc6 {[%clk 0:00:40.6]} 32... Qe4+ {[%clk 0:00:22.3]} 33.
Qxe4 {[%clk 0:00:39.2]} 33... Rxe4 {[%clk 0:00:22.8]} 34. Rxg6+ {[%clk
0:00:25.4]} 34... Kf7 {[%clk 0:00:22.9]} 35. Rc6 {[%clk 0:00:24.6]} 35... Rxa4
{[%clk 0:00:15.5]} 36. Rc3 {[%clk 0:00:24.4]} 36... Rad4 {[%clk 0:00:15.3]} 37.
Rd2 {[%clk 0:00:21.3]} 37... Ke6 {[%clk 0:00:15]} 38. a4 {[%clk 0:00:18.5]}
38... R8d5 {[%clk 0:00:15.1]} 39. a5 {[%clk 0:00:18]} 39... Ke5 {[%clk
0:00:13.2]} 40. Kf3 {[%clk 0:00:11.8]} 40... Rd7 {[%clk 0:00:08.9]} 41. a6
{[%clk 0:00:09.1]} 41... Rf7+ {[%clk 0:00:09]} 42. Kg2 {[%clk 0:00:08]} 42...
Ke4 {[%clk 0:00:09.6]} 43. Ra3 {[%clk 0:00:06.7]} 43... Ra7 {[%clk 0:00:09.4]}
44. Ra5 {[%clk 0:00:06.8]} 44... Rd6 {[%clk 0:00:06.8]} 45. Ra4+ {[%clk
0:00:06.7]} 45... Ke5 {[%clk 0:00:06]} 46. Kf3 {[%clk 0:00:06.1]} 46... Rf7+
{[%clk 0:00:05.9]} 47. Ke3 {[%clk 0:00:06.5]} 47... Rdf6 {[%clk 0:00:05.2]} 48.
f4+ {[%clk 0:00:06.5]} 48... Kf5 {[%clk 0:00:04.9]} 49. Rxd3 {[%clk 0:00:07]}
49... Kg4 {[%clk 0:00:04.9]} 50. Kd2 {[%clk 0:00:05.3]} 50... Ra7 {[%clk
0:00:04.1]} 51. Rda3 {[%clk 0:00:05.4]} 51... Rb6 {[%clk 0:00:03.8]} 52. Kc2
{[%clk 0:00:05.7]} 52... Rc6+ {[%clk 0:00:04]} 53. Kb2 {[%clk 0:00:05.7]} 53...
Rb6+ {[%clk 0:00:04.4]} 54. Ka2 {[%clk 0:00:06.1]} 54... Rd6 {[%clk 0:00:03.8]}
55. Ra5 {[%clk 0:00:06.5]} 55... Rd2+ {[%clk 0:00:03.4]} 56. Kb1 {[%clk
0:00:05.5]} 56... Rd1+ {[%clk 0:00:03.6]} 57. Kc2 {[%clk 0:00:05.7]} 57... Rg1
{[%clk 0:00:03.7]} 58. Rg5+ {[%clk 0:00:06.1]} 58... Kh3 {[%clk 0:00:03.8]} 59.
f5 {[%clk 0:00:06.6]} 59... Rg2+ {[%clk 0:00:03.7]} 60. Kb3 {[%clk 0:00:06.1]}
1-0

[Event "*** Titled Tuesday Blitz"]
[Site "Chess.com"]
[Date "2020.04.21"]
[Round "1"]
[White "lucliasco"]
[Black "KarpovVadim"]
[Result "1-0"]
[WhiteElo "2636"]
[BlackElo "2308"]
[TimeControl "180+1"]
[EndTime "10:08:29 PDT"]
[Termination "lucliasco won by resignation"]

1. e4 {[%clk 0:03:00.9]} 1... e5 {[%clk 0:02:48.6]} 2. Nf3 {[%clk 0:03:00.3]}
2... Nf6 {[%clk 0:02:47.1]} 3. Nc3 {[%clk 0:02:59.8]} 3... Nc6 {[%clk
0:02:45.3]} 4. g3 {[%clk 0:03:00.4]} 4... d5 {[%clk 0:02:43.1]} 5. exd5 {[%clk
0:02:59.6]} 5... Nxd5 {[%clk 0:02:44]} 6. Bg2 {[%clk 0:02:59.1]} 6... Nxc3
{[%clk 0:02:43.6]} 7. bxc3 {[%clk 0:02:58.5]} 7... Bc5 {[%clk 0:02:43.5]} 8. O-O
{[%clk 0:02:58.1]} 8... O-O {[%clk 0:02:43.1]} 9. d3 {[%clk 0:02:55.7]} 9... Bg4
{[%clk 0:02:40.8]} 10. h3 {[%clk 0:02:55.2]} 10... Bh5 {[%clk 0:02:39.2]} 11. g4
{[%clk 0:02:53]} 11... Bg6 {[%clk 0:02:39]} 12. Nd2 {[%clk 0:02:53.7]} 12... Bb6
{[%clk 0:02:38]} 13. a4 {[%clk 0:02:49.8]} 13... Re8 {[%clk 0:02:24.9]} 14. Nb3
{[%clk 0:02:37.8]} 14... a5 {[%clk 0:02:19.4]} 15. Nd2 {[%clk 0:02:33]} 15...
Bc5 {[%clk 0:02:16.1]} 16. Rb1 {[%clk 0:02:30.3]} 16... Rb8 {[%clk 0:01:59.1]}
17. Rxb7 {[%clk 0:02:15.2]} 17... Rxb7 {[%clk 0:01:58.4]} 18. Bxc6 {[%clk
0:02:15.6]} 18... Rb8 {[%clk 0:01:59.3]} 19. Bxe8 {[%clk 0:02:05.6]} 19... Qxe8
{[%clk 0:02:00.2]} 20. Nc4 {[%clk 0:02:06.3]} 20... f6 {[%clk 0:01:54.2]} 21.
Be3 {[%clk 0:02:05.2]} 21... Bf8 {[%clk 0:01:52.1]} 22. Nxa5 {[%clk 0:01:46.4]}
22... Qxa4 {[%clk 0:01:50.4]} 23. Nb3 {[%clk 0:01:41.3]} 23... Qc6 {[%clk
0:01:44.7]} 24. c4 {[%clk 0:01:38.6]} 24... e4 {[%clk 0:01:38.6]} 25. Nd4 {[%clk
0:01:37.1]} 25... Qd7 {[%clk 0:01:36.4]} 26. Nf5 {[%clk 0:01:23.2]} 26... Bxf5
{[%clk 0:01:32.3]} 27. gxf5 {[%clk 0:01:24.1]} 27... Qxf5 {[%clk 0:01:31.3]} 28.
Qg4 {[%clk 0:01:24.7]} 28... Qxg4+ {[%clk 0:01:29.5]} 29. hxg4 {[%clk
0:01:24.6]} 29... exd3 {[%clk 0:01:30.1]} 30. cxd3 {[%clk 0:01:25.2]} 30... Kf7
{[%clk 0:01:24.5]} 31. Ra1 {[%clk 0:01:21.4]} 31... c5 {[%clk 0:01:12.8]} 32.
Ra7+ {[%clk 0:01:19.6]} 32... Kg6 {[%clk 0:01:11]} 33. Kg2 {[%clk 0:01:18.8]}
33... h5 {[%clk 0:01:07.8]} 34. gxh5+ {[%clk 0:01:15.9]} 34... Kxh5 {[%clk
0:01:08.7]} 35. Kf3 {[%clk 0:01:16.8]} 35... Rd8 {[%clk 0:01:02.3]} 36. Ke4
{[%clk 0:01:11.4]} 36... Re8+ {[%clk 0:01:00.7]} 37. Kd5 {[%clk 0:01:07.6]}
37... Rd8+ {[%clk 0:00:59.6]} 38. Kc6 {[%clk 0:01:08]} 38... Rxd3 {[%clk
0:00:58.8]} 39. Ra8 {[%clk 0:01:04.3]} 39... Be7 {[%clk 0:00:57.4]} 40. Re8
{[%clk 0:01:02.7]} 40... Bd8 {[%clk 0:00:45]} 41. Bxc5 {[%clk 0:01:03.3]} 41...
g5 {[%clk 0:00:42.9]} 42. Bd6 {[%clk 0:01:01.1]} 42... Ba5 {[%clk 0:00:40.1]}
43. c5 {[%clk 0:01:01.7]} 43... Kg4 {[%clk 0:00:36]} 44. Kb5 {[%clk 0:01:00.2]}
44... Ra3 {[%clk 0:00:26.8]} 45. Ra8 {[%clk 0:00:53.1]} 45... Bb4 {[%clk
0:00:21]} 46. Rc8 {[%clk 0:00:48.1]} 46... Bxc5 {[%clk 0:00:19.1]} 47. Bxc5
{[%clk 0:00:47]} 47... Rb3+ {[%clk 0:00:18.6]} 48. Kc4 {[%clk 0:00:46.5]} 48...
Rb1 {[%clk 0:00:17.6]} 49. Rf8 {[%clk 0:00:44.2]} 49... f5 {[%clk 0:00:17.2]}
50. Kd3 {[%clk 0:00:44.5]} 50... f4 {[%clk 0:00:14]} 51. Rg8 {[%clk 0:00:40]}
51... Rb5 {[%clk 0:00:11.3]} 52. Bd4 {[%clk 0:00:39.7]} 52... Kf3 {[%clk
0:00:08]} 53. Rf8 {[%clk 0:00:39.8]} 53... g4 {[%clk 0:00:06.1]} 54. Be3 {[%clk
0:00:40.3]} 54... Rb3+ {[%clk 0:00:04.1]} 55. Kd2 {[%clk 0:00:40.2]} 55... Rb2+
{[%clk 0:00:03.5]} 56. Kd3 {[%clk 0:00:37.1]} 56... Rb3+ {[%clk 0:00:02.7]} 57.
Kd4 {[%clk 0:00:37.6]} 57... Rb4+ {[%clk 0:00:01.9]} 58. Kc3 {[%clk 0:00:38.3]}
58... Ra4 {[%clk 0:00:02.5]} 59. Bb6 {[%clk 0:00:33.3]} 59... Re4 {[%clk
0:00:03.4]} 60. Kd3 {[%clk 0:00:32.9]} 60... Ra4 {[%clk 0:00:02]} 61. Bc5 {[%clk
0:00:33.1]} 61... Re4 {[%clk 0:00:02.6]} 62. Ra8 {[%clk 0:00:30.7]} 62... Ra4
{[%clk 0:00:02.6]} 63. Rxa4 {[%clk 0:00:30.4]} 63... g3 {[%clk 0:00:02.5]} 64.
fxg3 {[%clk 0:00:30.3]} 64... fxg3 {[%clk 0:00:02.6]} 65. Ra1 {[%clk 0:00:31.2]}
1-0

[Event "*** Titled Tuesday Blitz"]
[Site "Chess.com"]
[Date "2020.04.21"]
[Round "1"]
[White "yoolund"]
[Black "DonPreuss"]
[Result "1/2-1/2"]
[WhiteElo "2555"]
[BlackElo "2211"]
[TimeControl "180+1"]
[EndTime "10:08:33 PDT"]
[Termination "Game drawn - insufficient material"]

1. d4 {[%clk 0:03:00.7]} 1... Nc6 {[%clk 0:02:55.1]} 2. Nf3 {[%clk 0:02:59.1]}
2... d6 {[%clk 0:02:55]} 3. e4 {[%clk 0:02:57.9]} 3... g6 {[%clk 0:02:55.3]} 4.
d5 {[%clk 0:02:54.4]} 4... Ne5 {[%clk 0:02:54.8]} 5. Nxe5 {[%clk 0:02:54.3]}
5... dxe5 {[%clk 0:02:55.7]} 6. Be3 {[%clk 0:02:53.6]} 6... Bg7 {[%clk 0:02:55]}
7. c4 {[%clk 0:02:51.5]} 7... e6 {[%clk 0:02:54.7]} 8. Nc3 {[%clk 0:02:51.1]}
8... Ne7 {[%clk 0:02:54.1]} 9. Qd2 {[%clk 0:02:50.8]} 9... exd5 {[%clk
0:02:52.6]} 10. cxd5 {[%clk 0:02:49.9]} 10... Bd7 {[%clk 0:02:40.1]} 11. Bh6
{[%clk 0:02:44.2]} 11... O-O {[%clk 0:02:38.5]} 12. Bc4 {[%clk 0:02:40.6]} 12...
Nc8 {[%clk 0:02:33.5]} 13. Bxg7 {[%clk 0:02:38.5]} 13... Kxg7 {[%clk 0:02:33.2]}
14. Rc1 {[%clk 0:02:25.8]} 14... Nd6 {[%clk 0:02:32.6]} 15. Bd3 {[%clk
0:02:25.5]} 15... a6 {[%clk 0:02:32.2]} 16. O-O {[%clk 0:02:23.5]} 16... f5
{[%clk 0:02:00]} 17. f4 {[%clk 0:01:47.1]} 17... Qe7 {[%clk 0:01:59]} 18. Rce1
{[%clk 0:01:45.6]} 18... fxe4 {[%clk 0:01:49]} 19. Nxe4 {[%clk 0:01:43.5]} 19...
Nxe4 {[%clk 0:01:48.9]} 20. Rxe4 {[%clk 0:00:45.1]} 20... Qc5+ {[%clk
0:01:47.6]} 21. Qe3 {[%clk 0:00:43.3]} 21... Qxe3+ {[%clk 0:01:25.6]} 22. Rxe3
{[%clk 0:00:44.2]} 22... exf4 {[%clk 0:01:25.8]} 23. Re7+ {[%clk 0:00:43.4]}
23... Rf7 {[%clk 0:01:26.1]} 24. Rxf7+ {[%clk 0:00:43]} 24... Kxf7 {[%clk
0:01:27]} 25. Rxf4+ {[%clk 0:00:43]} 25... Kg7 {[%clk 0:01:25.1]} 26. Kf2 {[%clk
0:00:32.5]} 26... Rf8 {[%clk 0:01:23.5]} 27. Ke3 {[%clk 0:00:30.6]} 27... Rxf4
{[%clk 0:01:22.9]} 28. Kxf4 {[%clk 0:00:31.5]} 28... Kf6 {[%clk 0:01:22.3]} 29.
h4 {[%clk 0:00:28.7]} 29... h6 {[%clk 0:01:21.5]} 30. g3 {[%clk 0:00:14.9]}
30... g5+ {[%clk 0:01:19.3]} 31. hxg5+ {[%clk 0:00:15.8]} 31... hxg5+ {[%clk
0:01:19.6]} 32. Ke3 {[%clk 0:00:16.2]} 32... Ke5 {[%clk 0:01:18.5]} 33. Be4
{[%clk 0:00:15]} 33... b6 {[%clk 0:01:10.6]} 34. a3 {[%clk 0:00:14.3]} 34... a5
{[%clk 0:00:45.9]} 35. Bg2 {[%clk 0:00:10.6]} 35... Bb5 {[%clk 0:00:38.2]} 36.
Be4 {[%clk 0:00:10]} 36... Bc4 {[%clk 0:00:36.2]} 37. Bf3 {[%clk 0:00:10.2]}
37... Bxd5 {[%clk 0:00:36.3]} 38. Be2 {[%clk 0:00:10.7]} 38... c6 {[%clk
0:00:29.6]} 39. Bd3 {[%clk 0:00:10.7]} 39... b5 {[%clk 0:00:29.5]} 40. Be2
{[%clk 0:00:11.6]} 40... b4 {[%clk 0:00:28.8]} 41. axb4 {[%clk 0:00:11.3]} 41...
axb4 {[%clk 0:00:29.1]} 42. Bd3 {[%clk 0:00:11.7]} 42... c5 {[%clk 0:00:29.4]}
43. Be2 {[%clk 0:00:11.9]} 43... c4 {[%clk 0:00:29.5]} 44. Bd1 {[%clk
0:00:11.1]} 44... Be6 {[%clk 0:00:18.2]} 45. Bc2 {[%clk 0:00:10.5]} 45... Kd5
{[%clk 0:00:15.4]} 46. Be4+ {[%clk 0:00:09.9]} 46... Kc5 {[%clk 0:00:15.5]} 47.
Bc2 {[%clk 0:00:10.2]} 47... Kd5 {[%clk 0:00:13.2]} 48. Be4+ {[%clk 0:00:09]}
48... Ke5 {[%clk 0:00:13.3]} 49. Bc2 {[%clk 0:00:09.9]} 49... Bf5 {[%clk
0:00:13.7]} 50. Ba4 {[%clk 0:00:10]} 50... Bd3 {[%clk 0:00:13.2]} 51. Bb5 {[%clk
0:00:09.5]} 51... Bf1 {[%clk 0:00:12.8]} 52. Ba6 {[%clk 0:00:07.8]} 52... Kd5
{[%clk 0:00:10.1]} 53. Bb5 {[%clk 0:00:07.9]} 53... Kc5 {[%clk 0:00:10.1]} 54.
Ba4 {[%clk 0:00:08.1]} 54... c3 {[%clk 0:00:08.3]} 55. bxc3 {[%clk 0:00:09]}
55... bxc3 {[%clk 0:00:08.7]} 56. Bc2 {[%clk 0:00:09.2]} 56... Kb4 {[%clk
0:00:08.6]} 57. Kd4 {[%clk 0:00:09.4]} 57... Bg2 {[%clk 0:00:06.7]} 58. Bd3
{[%clk 0:00:09]} 58... Bc6 {[%clk 0:00:06.3]} 59. Ke5 {[%clk 0:00:08.4]} 59...
Ba4 {[%clk 0:00:03.9]} 60. Kf5 {[%clk 0:00:06.8]} 60... c2 {[%clk 0:00:04.3]}
61. Bxc2 {[%clk 0:00:05.6]} 61... Bxc2+ {[%clk 0:00:05.2]} 62. Kxg5 {[%clk
0:00:06]} 62... Bd1 {[%clk 0:00:06.1]} 63. Kf4 {[%clk 0:00:06.1]} 63... Kc3
{[%clk 0:00:07]} 64. g4 {[%clk 0:00:06.2]} 64... Bxg4 {[%clk 0:00:07.1]} 1/2-1/2

[Event "*** Titled Tuesday Blitz"]
[Site "Chess.com"]
[Date "2020.04.21"]
[Round "1"]
[White "Cubitas"]
[Black "Vojtap"]
[Result "1-0"]
[WhiteElo "2514"]
[BlackElo "2083"]
[TimeControl "180+1"]
[EndTime "10:08:34 PDT"]
[Termination "Cubitas won on time"]

1. e4 {[%clk 0:03:00]} 1... c5 {[%clk 0:02:34.6]} 2. Nc3 {[%clk 0:02:59.6]} 2...
Nc6 {[%clk 0:02:34.3]} 3. Bb5 {[%clk 0:02:58.6]} 3... g6 {[%clk 0:02:33.7]} 4.
f4 {[%clk 0:02:52.8]} 4... Bg7 {[%clk 0:02:30.4]} 5. Nf3 {[%clk 0:02:53.2]} 5...
Nd4 {[%clk 0:02:26.1]} 6. O-O {[%clk 0:02:53.3]} 6... Nxb5 {[%clk 0:02:08.6]} 7.
Nxb5 {[%clk 0:02:54.2]} 7... Nf6 {[%clk 0:02:06.1]} 8. e5 {[%clk 0:02:45]} 8...
Nd5 {[%clk 0:01:55.2]} 9. d4 {[%clk 0:02:33.1]} 9... cxd4 {[%clk 0:01:50.6]} 10.
Qxd4 {[%clk 0:02:26.1]} 10... Nb6 {[%clk 0:01:48.6]} 11. Be3 {[%clk 0:02:20.1]}
11... O-O {[%clk 0:01:45.2]} 12. Nxa7 {[%clk 0:02:18]} 12... Rxa7 {[%clk
0:01:45]} 13. Qxb6 {[%clk 0:02:18.1]} 13... Ra4 {[%clk 0:01:42.8]} 14. Qxd8
{[%clk 0:02:07.8]} 14... Rxd8 {[%clk 0:01:42.2]} 15. b3 {[%clk 0:02:06.4]} 15...
Re4 {[%clk 0:01:40.8]} 16. Bb6 {[%clk 0:02:06.3]} 16... Re8 {[%clk 0:01:35.4]}
17. Nd2 {[%clk 0:01:49.5]} 17... Re2 {[%clk 0:01:27.3]} 18. Rf2 {[%clk
0:01:49.8]} 18... Rxf2 {[%clk 0:01:21]} 19. Kxf2 {[%clk 0:01:50.7]} 19... d6
{[%clk 0:01:21]} 20. Re1 {[%clk 0:01:41]} 20... dxe5 {[%clk 0:01:18.4]} 21. fxe5
{[%clk 0:01:41.9]} 21... Bf5 {[%clk 0:01:18]} 22. c4 {[%clk 0:01:41.1]} 22...
Rc8 {[%clk 0:00:58.6]} 23. Nf3 {[%clk 0:01:38]} 23... Rc6 {[%clk 0:00:54.3]} 24.
Bd4 {[%clk 0:01:27.8]} 24... Ra6 {[%clk 0:00:51.7]} 25. a4 {[%clk 0:01:26.8]}
25... Bc2 {[%clk 0:00:47.2]} 26. Re3 {[%clk 0:01:20.6]} 26... Kf8 {[%clk
0:00:33.6]} 27. Rc3 {[%clk 0:01:17.7]} 27... Bd1 {[%clk 0:00:31.6]} 28. Ke1
{[%clk 0:01:10.4]} 28... Bxf3 {[%clk 0:00:30]} 29. gxf3 {[%clk 0:01:11.3]} 29...
Ke8 {[%clk 0:00:29.1]} 30. Rd3 {[%clk 0:01:04.6]} 30... Kd7 {[%clk 0:00:28.5]}
31. f4 {[%clk 0:00:57.2]} 31... Ke6 {[%clk 0:00:28.3]} 32. Kf2 {[%clk
0:00:57.3]} 32... Kf5 {[%clk 0:00:27.9]} 33. Kf3 {[%clk 0:00:56.6]} 33... h6
{[%clk 0:00:21.4]} 34. Bc5 {[%clk 0:00:52.8]} 34... g5 {[%clk 0:00:19.1]} 35.
fxg5 {[%clk 0:00:45]} 35... hxg5 {[%clk 0:00:19]} 36. Bxe7 {[%clk 0:00:42.4]}
36... Bxe5 {[%clk 0:00:18.9]} 37. h3 {[%clk 0:00:42]} 37... Rh6 {[%clk
0:00:16.9]} 38. Kg2 {[%clk 0:00:40.6]} 38... g4 {[%clk 0:00:10.3]} 39. hxg4+
{[%clk 0:00:38.6]} 39... Kxg4 {[%clk 0:00:10.1]} 40. Bd6 {[%clk 0:00:32.7]}
40... Rxd6 {[%clk 0:00:05.3]} 41. Re3 {[%clk 0:00:31.2]} 41... Bf4 {[%clk
0:00:04.9]} 42. Re7 {[%clk 0:00:30.7]} 42... Rd2+ {[%clk 0:00:04.6]} 43. Kf1
{[%clk 0:00:31]} 43... Kf3 {[%clk 0:00:04.5]} 44. Ke1 {[%clk 0:00:30.7]} 44...
f5 {[%clk 0:00:03.7]} 45. Rxb7 {[%clk 0:00:28.8]} 45... Rb2 {[%clk 0:00:03.6]}
46. Kd1 {[%clk 0:00:26.6]} 46... Be3 {[%clk 0:00:02]} 47. a5 {[%clk 0:00:21.2]}
47... Rd2+ {[%clk 0:00:02]} 48. Ke1 {[%clk 0:00:20.5]} 48... Rc2 {[%clk
0:00:01.9]} 49. Rd7 {[%clk 0:00:18.7]} 49... Rc1+ {[%clk 0:00:01.7]} 50. Rd1
{[%clk 0:00:18.7]} 50... Rxd1+ {[%clk 0:00:02.3]} 51. Kxd1 {[%clk 0:00:19.6]}
51... f4 {[%clk 0:00:01.9]} 52. b4 {[%clk 0:00:19.6]} 52... Kg2 {[%clk 0:00:02]}
53. Ke2 {[%clk 0:00:17.9]} 53... f3+ {[%clk 0:00:02.1]} 54. Kxe3 {[%clk
0:00:18.1]} 54... f2 {[%clk 0:00:02.5]} 55. Kd4 {[%clk 0:00:19]} 55... f1=Q
{[%clk 0:00:02]} 56. Kc5 {[%clk 0:00:19.9]} 56... Qf5+ {[%clk 0:00:01.5]} 57.
Kb6 {[%clk 0:00:20.3]} 57... Qe6+ {[%clk 0:00:01.4]} 58. Kb5 {[%clk 0:00:20.6]}
1-0